bitfinex/quotes_ETHUSD_20260307
["timestamp","ask_amount","ask_price","bid_price","bid_amount"]
[1772858736918,0.001,1977.1,1976.8,0.4968032]
[1772858737209,0.001,1977.0,1976.8,0.4968032]
[1772858738612,0.001,1977.0,1976.8,1.76147096]
[1772858739808,0.001,1977.0,1976.8,0.0011]
[1772858740001,0.48687631,1977.0,1976.8,0.0011]
[1772858741590,0.48587631,1976.9,1976.6,1.2171]
[1772858742116,1.26467017,1976.8,1976.6,1.2171]
[1772858744504,1.75053024,1976.9,1976.6,1.2171]
[1772858745302,0.48587631,1976.8,1976.6,1.2171]
[1772858745497,0.48587631,1976.7,1976.1,0.0011]
[1772858745798,0.48587631,1976.5,1976.1,1.26731437]
[1772858746205,0.48587631,1976.5,1976.2,0.48960931]
[1772858747120,1.26480303,1976.6,1976.2,0.49070931]
[1772858747288,1.26480303,1976.6,1976.3,0.0011]
[1772858747690,0.48587631,1976.5,1976.1,1.75582368]
[1772858748389,0.48587631,1976.5,1976.1,1.26621437]
[1772858748690,0.48587631,1976.5,1976.2,0.48960931]
[1772858749722,0.48587631,1976.5,1976.2,0.49070931]
[1772858750524,1.26492612,1976.4,1976.1,0.0011]
[1772858750727,0.48587631,1976.5,1976.2,0.49070931]
[1772858751112,1.75064213,1976.7,1976.3,0.49070931]
[1772858751285,1.75064213,1976.7,1976.3,0.48960931]
[1772858751624,0.48587631,1976.7,1976.4,0.48960931]
[1772858752331,0.48587631,1976.7,1976.4,0.49070931]
[1772858754631,1.75061475,1976.7,1976.4,0.49070931]
[1772858755319,0.48587631,1976.6,1976.4,0.0011]
[1772858756527,0.48587631,1976.6,1976.2,0.48960931]
[1772858757023,0.48587631,1976.6,1976.2,1.75464863]
[1772858758533,2.70297042,1976.8,1976.3,0.45572354]
[1772858759233,0.46169675,1976.7,1976.4,0.45572354]
[1772858760937,0.46169675,1976.7,1976.2,1.26500664]
[1772858761228,0.46169675,1976.5,1976.1,1.72191364]
[1772858762112,0.46169675,1976.5,1976.3,0.0011]
[1772858762809,0.48001499,1976.4,1976.3,0.0011]
[1772858764131,1.74490971,1976.5,1976.1,0.49042883]
[1772858765635,0.48001499,1976.4,1976.1,0.49042883]
[1772858767436,0.48001499,1976.4,1976.1,0.0011]
[1772858774053,0.48001499,1976.4,1976.1,0.49042883]
[1772858774754,1.74494378,1976.4,1976.2,0.0011]
[1772858774955,1.74594378,1976.4,1976.2,0.0011]
[1772858775853,0.48101499,1976.4,1976.2,0.0011]
[1772858782663,1.74594176,1976.4,1976.2,0.0011]
[1772858785237,0.48001499,1976.3,1976.2,0.0011]
[1772858786843,0.48101499,1976.3,1976.2,0.0011]
[1772858790373,1.74600512,1976.3,1976.2,0.0011]
[1772858791462,0.48001499,1976.2,1976.0,1.2121]
[1772858793671,1.26511816,1976.1,1976.0,1.2121]
[1772858793870,1.74511572,1976.2,1976.0,1.2121]
[1772858797277,0.4976784,1976.1,1976.0,1.2121]
[1772858797854,5.06108281,1976.3,1976.0,1.2121]
[1772858798061,0.4976784,1976.2,1976.0,1.2121]
[1772858798678,1.76366853,1976.3,1976.1,0.0011]
[1772858799673,0.001,1976.3,1976.1,0.48726423]
[1772858810461,0.001,1976.2,1976.1,0.48726423]
[1772858819701,0.001,1976.2,1976.1,0.0011]
[1772858821078,0.001,1976.2,1976.1,0.47471201]
[1772858830705,0.001,1976.4,1976.2,0.48242608]
[1772858830906,0.001,1976.6,1976.2,0.48242608]
[1772858832242,1.26579874,1976.6,1976.2,0.48242608]
[1772858834139,1.26579874,1976.6,1976.2,0.48352608]
[1772858834334,0.001,1976.5,1976.2,0.48352608]
[1772858839945,0.001,1976.5,1976.3,0.48242608]
[1772858841454,0.001,1976.5,1976.4,1.71542608]
[1772858845159,0.001,1976.6,1976.5,0.48242608]
[1772858847871,1.73983725,1977.0,1976.5,1.74728821]
[1772858848045,1.73983725,1977.0,1976.6,0.48242608]
[1772858848240,0.47424891,1976.9,1976.4,2.98030433]
[1772858849450,0.47424891,1976.9,1976.4,1.71542608]
[1772858849656,0.47424891,1976.9,1976.4,2.9803328]
[1772858850249,0.47424891,1976.7,1976.4,1.71542608]
[1772858850449,0.47424891,1976.7,1976.4,1.233]
[1772858850670,0.47424891,1976.7,1976.4,1.033]
[1772858851156,0.47424891,1976.7,1976.4,1e-08]
[1772858853575,0.47732261,1976.5,1976.4,1e-08]
[1772858856679,1.74218474,1976.5,1976.4,1e-08]
[1772858858377,0.47732261,1976.9,1976.4,0.49749844]
[1772858858577,5.53577565,1976.9,1976.4,0.49859844]
[1772858858881,0.47732261,1976.8,1976.4,0.49859844]
[1772858859256,0.47732261,1976.9,1976.5,0.49749844]
[1772858860557,1.7419568,1976.9,1976.5,0.49749844]
[1772858861865,0.47732261,1976.8,1976.5,0.49749844]
[1772858862098,0.47732261,1976.8,1976.4,0.0011]
[1772858862504,0.47732261,1976.8,1976.4,0.49859844]
[1772858865828,1.26471438,1976.8,1976.4,0.49859844]
[1772858865981,0.47732261,1976.7,1976.4,0.49859844]
[1772858868108,0.47732261,1976.7,1976.4,0.0011]
[1772858868109,0.47732261,1976.6,1976.4,0.0011]
[1772858870027,0.47732261,1976.6,1976.5,0.0011]
[1772858879340,1.74212074,1976.6,1976.2,0.49491262]
[1772858879552,0.4594495,1976.5,1976.0,1.2371]
[1772858880619,0.4594495,1976.5,1976.0,1.73091262]
[1772858881413,1.72437562,1976.4,1976.0,1.73091262]
[1772858881920,0.4594495,1976.3,1976.0,1.2371]
[1772858882439,0.4594495,1976.3,1976.2,0.0011]
[1772858895043,0.48447808,1976.2,1976.0,0.0011]
[1772858896731,1.26499013,1976.3,1976.0,0.46451989]
[1772858897213,1.74946821,1976.3,1976.0,0.46451989]
[1772858897446,1.26499013,1976.3,1976.0,0.46451989]
[1772858897821,0.48447808,1976.2,1976.0,0.0011]
[1772858898353,1.26499013,1976.3,1976.0,0.0011]
[1772858898532,1.74946821,1976.3,1976.0,0.0011]
[1772858901872,0.48447808,1976.2,1976.0,0.0011]
[1772858904191,1.26499013,1976.3,1976.0,0.46451989]
[1772858906291,0.48447808,1976.3,1976.0,0.46451989]
[1772858906500,0.48447808,1976.3,1976.1,0.0011]
[1772858906670,0.001,1976.2,1976.1,0.0011]
[1772858925344,0.49917289,1976.2,1976.1,0.0011]
[1772858944455,0.48297087,1976.4,1976.1,0.0011]
[1772858948855,0.48297087,1976.3,1976.1,0.0011]
[1772858951561,0.4420924,1976.4,1976.1,0.0011]
[1772858954162,0.001,1976.3,1976.2,0.0011]
[1772858964557,0.4430924,1976.3,1976.2,0.0011]
[1772858972380,0.001,1976.3,1976.2,0.0011]
[1772858996812,0.4430924,1976.3,1976.1,0.0011]
[1772858997018,0.4430924,1976.3,1975.9,1.74237012]
[1772858998811,1.70809212,1976.3,1976.0,0.46626561]
[1772859000326,0.001,1976.3,1976.0,0.46626561]
[1772859002019,0.001,1976.3,1976.1,0.0011]
[1772859002225,0.001,1976.3,1976.1,0.48752858]
[1772859002430,0.001,1976.2,1975.9,0.48752858]
[1772859002638,0.001,1976.2,1976.0,0.48752858]
[1772859003132,5.06070451,1976.5,1976.1,0.48642858]
[1772859003133,0.001,1976.5,1976.1,0.48642858]
[1772859003430,0.001,1976.5,1976.2,0.48642858]
[1772859005930,0.001,1976.5,1976.2,1.75142841]
[1772859006228,0.001,1976.5,1976.2,1.26499983]
[1772859006412,0.001,1976.5,1976.3,0.48642858]
[1772859008544,0.001,1976.5,1976.4,0.48642858]
[1772859026828,0.001,1976.5,1976.4,0.48752858]
[1772859041553,0.001,1976.5,1976.4,0.0011]
[1772859046263,0.001,1976.5,1976.4,0.45511742]
[1772859060276,0.001,1976.7,1976.4,1.26602612]
[1772859060576,0.001,1977.0,1976.6,0.47880128]
[1772859060747,1.26554445,1977.0,1976.6,0.47880128]
[1772859060949,0.001,1977.0,1976.6,0.47880128]
[1772859061880,1.2655438,1977.0,1976.7,0.49432045]
[1772859062295,0.001,1976.9,1976.7,0.49432045]
[1772859071994,0.001,1976.9,1976.8,0.49432045]
[1772859072320,0.001,1976.9,1976.7,0.49432045]
[1772859073483,0.4781602,1976.9,1976.6,1.72832045]
[1772859074071,0.4781602,1976.9,1976.8,0.0011]
[1772859074268,0.4771602,1976.7,1976.4,0.0011]
[1772859074802,1.74195833,1976.6,1976.5,0.0011]
[1772859088810,0.4771602,1976.5,1976.4,1.234]
[1772859088987,0.4771602,1976.5,1976.0,0.49542045]
[1772859089189,1.74195833,1976.6,1976.0,0.49542045]
[1772859089393,1.74195833,1976.6,1976.1,0.49432045]
[1772859095708,1.26479813,1976.6,1976.1,0.49432045]
[1772859095912,0.46182956,1976.5,1976.1,0.49432045]
[1772859097904,1.26492612,1976.4,1976.2,0.0011]
[1772859098104,1.26492612,1976.4,1976.2,0.48575009]
[1772859099916,1.26492612,1976.4,1976.2,0.0011]
[1772859100215,0.46182956,1976.4,1976.2,0.0011]
[1772859100592,0.46282956,1976.5,1976.2,0.48575009]
[1772859101924,0.46282956,1976.5,1976.2,0.0011]
[1772859102154,1.26492612,1976.4,1976.2,0.0011]
[1772859103727,1.72675568,1976.4,1976.2,0.0011]
[1772859104411,0.46182956,1976.3,1975.9,0.48575009]
[1772859106634,1.7268837,1976.2,1975.9,0.48575009]
[1772859108126,1.26505414,1976.2,1975.9,0.48575009]
[1772859108326,1.26502797,1976.3,1975.9,0.48575009]
[1772859108624,1.72769169,1976.5,1976.0,0.48465009]
[1772859109530,0.46182956,1976.4,1976.0,0.48465009]
[1772859109731,0.46182956,1976.4,1976.0,0.48575009]
[1772859110603,1.72678706,1976.4,1976.0,0.48575009]
[1772859112832,1.72678706,1976.4,1976.0,0.43575009]
[1772859119231,0.46027908,1976.3,1976.0,0.43575009]
[1772859121428,0.46027908,1976.3,1976.1,0.0011]
[1772859121627,0.46127908,1976.3,1976.1,0.0011]
[1772859126211,0.001,1976.3,1976.1,0.45611945]
[1772859132749,0.001,1976.3,1976.2,0.45501945]
[1772859137047,0.001,1976.3,1976.1,0.0011]
[1772859137252,0.001,1976.3,1976.1,0.45611945]
[1772859144939,0.001,1976.2,1976.1,0.45611945]
[1772859145269,1.26590375,1976.5,1976.2,0.45501945]
[1772859147864,1.73808178,1976.5,1976.2,0.45501945]
[1772859148746,0.47317803,1976.5,1976.2,0.45501945]
[1772859151973,0.47831811,1976.4,1976.1,0.49661821]
[1772859152271,1.26586271,1976.5,1976.1,0.49661821]
[1772859153967,0.47931811,1976.5,1976.1,0.49661821]
[1772859154170,0.47931811,1976.5,1976.1,1.76172187]
[1772859154954,0.47931811,1976.5,1976.2,0.49551821]
[1772859156880,1.74418093,1976.5,1976.2,0.49661821]
[1772859157181,0.001,1976.4,1976.2,0.49661821]
[1772859158477,0.001,1976.4,1976.2,0.0011]
[1772859158968,0.47931811,1976.4,1976.2,0.0011]
[1772859161978,0.47831811,1976.3,1976.1,0.0011]
[1772859164571,1.26503155,1976.3,1976.1,0.0011]
[1772859164756,0.47831811,1976.2,1976.1,0.0011]
[1772859166984,1.74337225,1976.2,1976.1,0.0011]
[1772859167161,1.74429341,1976.4,1976.1,0.49661821]
[1772859167985,0.47931811,1976.4,1976.1,0.49661821]
[1772859168159,1.74424656,1976.4,1976.1,0.49661821]
[1772859168360,0.47931811,1976.4,1976.1,0.49661821]
[1772859168687,1.74424519,1976.4,1976.2,0.0011]
[1772859172965,0.47831811,1976.3,1976.2,0.0011]
[1772859176699,1.74424519,1976.4,1976.2,0.0011]
[1772859180292,1.74424519,1976.4,1976.3,0.0011]
[1772859181413,1.74424423,1976.4,1976.3,0.0011]
[1772859182822,0.47931811,1976.4,1976.3,0.0011]
[1772859193021,1.74424423,1976.4,1976.3,0.0011]
[1772859193723,0.47931811,1976.4,1976.3,0.0011]
[1772859199828,1.74424423,1976.4,1976.3,0.0011]
[1772859203240,0.001,1976.4,1976.3,0.0011]
[1772859203530,0.001,1976.5,1976.4,0.48622418]
[1772859209641,0.001,1976.5,1976.3,0.0011]
[1772859210075,0.001,1976.5,1976.3,0.48732418]
[1772859212548,0.45949188,1976.5,1976.3,0.0011]
[1772859214678,0.001,1976.5,1976.3,0.0011]
[1772859214979,0.001,1976.5,1976.3,0.48358365]
[1772859215685,0.001,1976.4,1976.3,0.48358365]
[1772859229814,0.001,1976.4,1976.3,0.0011]
[1772859239441,0.001,1976.5,1976.3,0.48176693]
[1772859240341,0.001,1976.5,1976.3,1.26607016]
[1772859240513,0.001,1976.5,1976.4,0.48066693]
[1772859240715,1.26571391,1976.8,1976.4,0.48066693]
[1772859241228,1.75499261,1976.8,1976.4,0.48066693]
[1772859244346,0.47530869,1976.7,1976.4,0.48066693]
[1772859245652,1.74006407,1976.7,1976.4,0.48066693]
[1772859247324,0.47530869,1976.6,1976.3,0.49462774]
[1772859248650,0.47530869,1976.6,1976.3,0.0011]
[1772859250552,0.47530869,1976.6,1976.4,0.0011]
[1772859256863,0.001,1976.8,1976.4,0.0011]
[1772859257062,0.001,1977.4,1976.7,0.49352774]
[1772859257063,0.47530869,1977.3,1976.7,0.49352774]
[1772859259160,0.47530869,1977.1,1976.8,0.49352774]
[1772859259457,1.26441432,1977.2,1976.8,0.49352774]
[1772859259956,1.73970289,1977.3,1976.8,0.49352774]
[1772859260163,0.001,1977.4,1976.8,0.49352774]
[1772859262266,0.001,1977.4,1977.0,0.49352774]
[1772859262476,0.001,1977.2,1977.0,0.49352774]
[1772859269561,0.001,1977.2,1977.1,0.49352774]
[1772859271781,0.47630869,1977.2,1976.7,0.49352774]
[1772859272963,0.47630869,1977.2,1976.5,1.69416183]
[1772859274184,0.45871551,1977.0,1976.5,1.69416183]
[1772859278709,1.72332171,1976.9,1976.5,1.69416183]
[1772859281200,0.45871551,1976.8,1976.5,1.69416183]
[1772859282200,0.45871551,1976.8,1976.5,1.2371]
[1772859283199,0.45871551,1976.5,1976.3,0.0011]
[1772859285007,0.45871551,1976.5,1976.2,0.0011]
[1772859285181,0.45871551,1976.3,1976.2,0.0011]
[1772859286677,0.45871551,1976.3,1976.0,0.0011]
[1772859287079,1.26505414,1976.2,1976.0,0.0011]
[1772859287383,1.72376965,1976.2,1976.0,0.0011]
[1772859287808,0.45871551,1976.1,1976.0,0.0011]
[1772859290494,1.72383367,1976.1,1976.0,0.0011]
[1772859291128,0.45871551,1976.5,1976.1,0.45706183]
[1772859291494,0.45871551,1976.5,1976.0,0.0011]
[1772859292424,0.45871551,1976.5,1976.1,1.72217999]
[1772859292721,1.7235817,1976.5,1976.2,0.45706183]
[1772859293929,0.45871551,1976.5,1976.2,0.45706183]
[1772859294228,1.72356334,1976.6,1976.2,0.45706183]
[1772859298031,5.05882203,1976.8,1976.2,0.45706183]
[1772859298236,0.49913558,1976.8,1976.3,0.47295552]
[1772859298732,0.001,1976.4,1976.3,0.47295552]
[1772859302610,0.001,1976.4,1976.3,1.73794565]
[1772859302816,0.001,1976.4,1976.3,0.47295552]
[1772859303237,0.001,1976.4,1976.3,1.73794565]
[1772859303642,0.001,1976.4,1976.3,0.47295552]
[1772859309842,0.48112307,1976.9,1976.4,0.49843592]
[1772859315067,0.48112307,1976.9,1976.6,0.49843592]
[1772859315270,0.48112307,1977.0,1976.6,0.49843592]
[1772859318678,0.001,1977.1,1976.7,0.49843592]
[1772859318884,0.48212307,1977.1,1976.7,0.49843592]
[1772859319171,1.74660475,1977.1,1976.7,0.49843592]
[1772859321965,0.001,1977.0,1976.7,0.49843592]
[1772859328307,0.001,1977.0,1976.6,1.26476229]
[1772859328308,0.48212307,1977.0,1976.6,0.49843592]
[1772859328511,0.48212307,1977.0,1976.5,1.76439797]
[1772859329017,0.48212307,1977.0,1976.5,0.49953592]
[1772859329395,0.48212307,1977.0,1976.5,1.7643926]
[1772859332614,0.49022823,1976.9,1976.5,1.7643926]
[1772859334219,0.49122823,1976.9,1976.5,1.7643926]
[1772859338621,1.75578719,1977.0,1976.6,0.49414037]
[1772859341625,0.49022823,1976.9,1976.6,0.49414037]
[1772859344148,1.75487637,1976.9,1976.6,0.49414037]
[1772859345729,1.75487637,1976.9,1976.6,0.49524037]
[1772859346123,0.49022823,1976.8,1976.6,0.0011]
[1772859349035,0.49122823,1976.9,1976.6,0.49524037]
[1772859350260,1.75583524,1976.9,1976.6,0.49524037]
[1772859351961,1.75583524,1976.9,1976.6,1.75999352]
[1772859351962,0.001,1976.9,1976.6,1.75999352]
[1772859352157,0.001,1976.9,1976.6,0.49524037]
[1772859353470,0.001,1976.9,1976.6,1.76002413]
[1772859355372,0.001,1976.9,1976.6,0.49524037]
[1772859356670,0.001,1976.9,1976.7,0.49414037]
[1772859357958,0.001,1976.9,1976.7,0.49524037]
[1772859358159,0.001,1976.8,1976.7,0.49524037]
[1772859361076,0.001,1977.0,1976.8,0.48036669]
[1772859362097,0.001,1977.2,1976.8,0.47123502]
[1772859362760,0.001,1977.2,1976.9,1.2646062]
[1772859362966,0.001,1977.2,1977.0,0.47123502]
[1772859365398,0.50036967,1977.2,1976.9,0.47123502]
[1772859367293,0.001,1977.2,1976.9,0.47123502]
[1772859367494,0.50036967,1977.4,1976.9,0.47123502]
[1772859367677,1.76466445,1977.4,1976.9,0.47123502]
[1772859369792,1.76466445,1977.4,1977.0,1.26454223]
[1772859369995,1.76466445,1977.4,1977.1,0.47123502]
[1772859370298,0.001,1977.3,1977.1,0.47123502]
[1772859379522,0.001,1977.3,1977.2,0.47123502]
[1772859381010,0.001,1977.5,1977.3,0.47123502]
[1772859390536,0.49936967,1977.4,1977.2,0.001]
[1772859391141,0.49936967,1977.3,1977.0,0.001]
[1772859392151,0.49936967,1977.3,1977.0,0.4626076]
[1772859395155,0.49936967,1977.3,1977.1,0.001]
[1772859395357,0.002,1977.2,1977.1,0.001]
[1772859400853,0.48201349,1977.2,1976.9,0.0011]
[1772859401151,0.48201349,1977.2,1976.8,0.0011]
[1772859401351,1.26447827,1977.1,1976.8,0.0011]
[1772859401530,0.48001349,1977.0,1976.8,0.0011]
[1772859407180,0.48001349,1977.0,1976.9,0.001]
[1772859412076,0.48201349,1977.2,1976.9,0.001]
[1772859414588,0.48001349,1977.1,1976.9,0.001]
[1772859418799,0.001,1977.0,1976.9,0.001]
[1772859419084,0.48390858,1977.0,1976.9,0.001]
[1772859419568,0.001,1977.0,1976.9,0.001]
[1772859420594,0.48390858,1977.0,1976.8,0.0011]
[1772859420795,1.74845514,1977.0,1976.8,0.0011]
[1772859421002,0.48290858,1976.9,1976.8,0.0011]
[1772859426091,0.47737911,1976.8,1976.6,0.0011]
[1772859428190,1.74206324,1976.8,1976.6,0.0011]
[1772859429293,0.47737911,1976.8,1976.6,0.0011]
[1772859429989,1.74210058,1976.8,1976.6,0.0011]
[1772859430294,1.74310058,1976.8,1976.7,0.0011]
[1772859450211,0.47737911,1976.7,1976.5,0.0011]
[1772859452418,1.74214822,1976.7,1976.5,0.0011]
[1772859454321,1.74214822,1976.7,1976.6,0.0011]
[1772859454493,1.74314822,1976.7,1976.6,0.0011]
[1772859455326,1.74314822,1976.7,1976.4,0.0011]
[1772859455509,0.47957349,1976.6,1976.4,0.0011]
[1772859456823,1.74442561,1976.6,1976.4,0.0011]
[1772859458225,0.47957349,1976.5,1976.4,0.0011]
[1772859458615,1.74443562,1976.5,1976.4,0.0011]
[1772859461512,0.47957349,1976.4,1976.2,0.0011]
[1772859464826,1.74449999,1976.4,1976.2,0.0011]
[1772859465218,0.47957349,1976.4,1976.2,0.0011]
[1772859465929,0.47957349,1976.4,1976.3,0.0011]
[1772859466301,1.74449961,1976.4,1976.3,0.0011]
[1772859469921,0.47957349,1976.4,1976.3,0.0011]
[1772859470127,1.74449961,1976.4,1976.3,0.0011]
[1772859470924,1.26492612,1976.4,1976.3,0.0011]
[1772859472331,1.74449961,1976.4,1976.3,0.0011]
[1772859481241,0.47957349,1976.4,1976.3,0.0011]
[1772859481447,1.74449961,1976.4,1976.3,0.0011]
[1772859482132,0.45935266,1976.3,1976.1,0.0011]
[1772859483137,1.72439352,1976.3,1976.1,0.0011]
[1772859486120,0.45935266,1976.2,1976.1,0.0011]
[1772859487948,1.7244068,1976.2,1976.1,0.0011]
[1772859488146,1.7244068,1976.2,1975.9,1e-08]
[1772859488659,1.7244068,1976.2,1975.8,0.07060445]
[1772859489330,0.46524777,1976.1,1975.8,0.07060445]
[1772859490125,1.73036593,1976.1,1976.0,0.0011]
[1772859493454,0.46524777,1976.1,1976.0,0.0011]
[1772859493651,1.26511816,1976.1,1976.0,0.0011]
[1772859494234,1.73036593,1976.1,1976.0,0.0011]
[1772859495054,0.46469777,1976.0,1975.7,0.06950445]
[1772859495744,0.46469777,1976.0,1975.5,0.07060445]
[1772859497461,1.26524621,1975.9,1975.5,1.26549452]
[1772859497644,1.26524621,1975.9,1975.6,0.07060445]
[1772859500272,0.46469777,1975.9,1975.6,0.07060445]
[1772859501771,0.46469777,1975.9,1975.7,0.0011]
[1772859502139,1.72995769,1975.9,1975.7,0.0011]
[1772859510060,0.46469777,1975.8,1975.7,0.0011]
[1772859511986,1.73000802,1975.8,1975.7,0.0011]
[1772859512894,0.46469777,1975.8,1975.7,0.0011]
[1772859513078,1.72999432,1975.9,1975.7,0.0011]
[1772859514185,1.73099432,1975.9,1975.7,0.0011]
[1772859515861,0.46469777,1975.8,1975.7,0.0011]
[1772859516479,1.73000802,1975.8,1975.7,0.0011]
[1772859516684,0.46469777,1975.8,1975.7,0.0011]
[1772859516885,1.73000802,1975.8,1975.7,0.0011]
[1772859519228,0.46469777,1975.8,1975.7,0.0011]
[1772859521618,1.73000802,1975.8,1975.7,0.0011]
[1772859523321,0.46469777,1975.8,1975.7,0.0011]
[1772859523614,0.46469777,1975.8,1975.5,0.0011]
[1772859524819,0.46469777,1975.8,1975.5,0.07280445]
[1772859526224,0.001,1975.7,1975.5,0.07280445]
[1772859526397,0.46414777,1975.6,1975.5,0.0011]
[1772859526916,0.46514777,1975.7,1975.5,0.0011]
[1772859527115,0.001,1975.7,1975.5,0.0011]
[1772859527320,0.001,1975.7,1975.5,0.07280445]
[1772859538301,0.001,1975.7,1975.6,0.0011]
[1772859538705,0.001,1975.7,1975.4,0.0011]
[1772859538706,0.47761971,1975.7,1975.4,0.0011]
[1772859540788,0.47761971,1975.7,1975.4,0.07280445]
[1772859540789,1.74302332,1975.7,1975.4,0.07280445]
[1772859549322,0.49766805,1975.6,1975.4,0.0011]
[1772859549822,0.49766805,1975.6,1975.5,0.0011]
[1772859550004,0.49866805,1975.6,1975.5,0.0011]
[1772859550325,1.76410639,1975.6,1975.5,0.0011]
[1772859556128,0.5,1975.5,1975.0,2.50376552]
[1772859557725,1.765503,1975.5,1975.0,2.50376552]
[1772859558922,0.5,1975.5,1975.0,2.50376552]
[1772859562014,0.5,1975.5,1975.1,0.0011]
[1772859562214,0.001,1975.4,1975.1,0.0011]
[1772859569141,0.501,1975.4,1975.1,0.0011]
[1772859582148,0.001,1975.4,1975.1,0.0011]
[1772859582353,0.001,1975.6,1975.1,0.0011]
[1772859584043,0.501,1975.6,1975.1,0.0011]
[1772859585531,0.501,1975.6,1975.2,0.0011]
[1772859585728,0.001,1975.5,1975.2,0.0011]
[1772859590356,0.501,1975.5,1975.2,0.0011]
[1772859591557,0.001,1975.5,1975.2,0.0011]
[1772859596773,0.501,1975.5,1975.2,0.0011]
[1772859597478,0.501,1975.5,1975.3,0.0011]
[1772859597850,0.001,1975.4,1975.3,0.0011]
[1772859598065,0.501,1975.4,1975.3,0.0011]
[1772859599083,0.501,1975.4,1975.2,0.0011]
[1772859600355,0.001,1975.4,1975.2,0.0011]
[1772859600560,0.001,1975.4,1975.2,0.0022]
[1772859603782,0.001,1975.4,1975.2,0.0011]
[1772859604352,0.50045,1975.4,1975.2,0.0011]
[1772859606690,0.001,1975.5,1975.3,0.0011]
[1772859606877,0.001,1975.7,1975.3,0.0011]
[1772859608162,0.50045,1975.7,1975.3,0.0011]
[1772859608764,0.50045,1975.7,1975.2,0.0022]
[1772859608986,0.50045,1975.7,1975.2,0.0011]
[1772859610487,0.49945,1975.6,1975.2,0.0022]
[1772859610676,0.49945,1975.6,1975.3,0.0011]
[1772859614263,0.49945,1975.5,1975.3,0.0011]
[1772859622298,0.001,1975.4,1975.3,0.0011]
[1772859626897,0.001,1975.7,1975.6,0.47637337]
[1772859630089,0.001,1975.7,1975.6,1.74181171]
[1772859631599,0.47418454,1976.0,1975.7,0.47637337]
[1772859634780,0.001,1975.8,1975.7,0.47637337]
[1772859639106,0.001,1975.8,1975.7,1.74174766]
[1772859639413,0.001,1975.8,1975.7,0.47637337]
[1772859639588,1.26512375,1976.1,1975.8,0.453811]
[1772859639589,0.46552739,1976.1,1975.8,0.453811]
[1772859639905,0.46552739,1976.2,1975.8,0.453811]
[1772859640406,0.46652739,1976.3,1975.8,0.453811]
[1772859641009,1.73152041,1976.3,1975.8,0.453811]
[1772859641994,0.46552739,1976.2,1975.8,1.71906269]
[1772859642197,0.46552739,1976.2,1975.9,0.453811]
[1772859645815,0.46552739,1976.2,1975.9,1.71903677]
[1772859646199,0.46652739,1976.3,1976.0,0.453811]
[1772859646519,0.001,1976.1,1976.0,0.453811]
[1772859647103,0.001,1976.3,1976.0,0.453811]
[1772859649217,0.001,1976.3,1976.1,0.453811]
[1772859651816,0.001,1976.3,1976.2,1.26505414]
[1772859653104,0.001,1976.3,1976.2,1.71886514]
[1772859653603,0.001,1976.3,1976.2,1.26505414]
[1772859656734,0.001,1976.3,1975.8,5.51599672]
[1772859656735,0.46652739,1976.3,1975.8,5.51599672]
[1772859656912,0.46652739,1976.3,1975.9,1.71905519]
[1772859658641,0.46652739,1976.3,1976.1,0.0011]
[1772859658946,0.001,1976.2,1976.1,0.0011]
[1772859659147,0.47734219,1976.5,1976.1,0.48861202]
[1772859661029,1.74222875,1976.5,1976.1,0.48861202]
[1772859662132,0.48020684,1976.4,1976.1,0.48861202]
[1772859666537,0.48020684,1976.4,1976.1,1.75371018]
[1772859670532,0.48020684,1976.4,1976.2,0.0011]
[1772859670850,0.001,1976.6,1976.3,0.45086841]
[1772859671446,0.48120684,1976.6,1976.3,0.45086841]
[1772859672464,0.001,1976.8,1976.5,0.45086841]
[1772859674651,0.001,1976.8,1976.6,1.26479813]
[1772859674830,0.001,1976.8,1976.7,0.45086841]
[1772859675962,0.001,1977.0,1976.7,0.45086841]
[1772859676456,0.48020684,1976.9,1976.4,1.71579453]
[1772859680346,0.48020684,1976.8,1976.3,2.9688077]
[1772859680585,0.48020684,1976.8,1976.3,1.253]
[1772859683660,0.48020684,1976.6,1976.4,0.0011]
[1772859693771,0.48036956,1976.8,1976.4,0.0011]
[1772859695878,0.47936956,1976.6,1976.5,0.0011]
[1772859697576,0.48036956,1976.8,1976.5,0.0011]
[1772859697778,0.001,1976.8,1976.5,0.48744436]
[1772859698280,0.001,1976.8,1976.5,1.26595372]
[1772859698584,0.001,1976.8,1976.6,0.48634436]
[1772859708193,0.001,1976.7,1976.6,0.48634436]
[1772859708789,1.74495113,1977.0,1976.7,0.48634436]
[1772859713110,0.47936956,1976.9,1976.5,0.0011]
[1772859713276,0.47936956,1976.9,1976.6,0.48634436]
[1772859715198,0.48036956,1977.0,1976.6,0.48634436]
[1772859720297,1.74496102,1977.0,1976.7,0.001]
[1772859720488,0.002,1976.9,1976.7,0.001]
[1772859723412,0.47025038,1976.9,1976.7,0.001]
[1772859726012,0.002,1976.9,1976.7,0.48942779]
[1772859732221,0.002,1976.9,1976.8,0.001]
[1772859746569,0.47025038,1976.9,1976.8,0.001]
[1772859755067,0.47484919,1976.9,1976.6,0.46396669]
[1772859758295,0.47484919,1976.9,1976.7,0.001]
[1772859758589,0.002,1976.8,1976.7,0.001]
[1772859763786,0.47484919,1976.8,1976.7,0.001]
[1772859763955,0.47484919,1976.8,1976.5,0.0011]
[1772859764158,0.47484919,1976.8,1976.5,0.46406669]
[1772859764481,0.002,1976.8,1976.5,0.46406669]
[1772859770194,0.002,1976.8,1976.6,0.001]
[1772859774006,0.002,1976.8,1976.6,0.46396669]
[1772859774985,0.47484919,1976.8,1976.6,0.001]
[1772859776289,0.47284919,1976.7,1976.6,0.001]
[1772859781894,0.47484919,1976.7,1976.6,0.001]
[1772859784279,0.002,1976.8,1976.6,0.47198675]
[1772859785899,1.26667273,1976.8,1976.6,0.47198675]
[1772859786997,0.002,1976.8,1976.6,0.47198675]
[1772859788695,0.002,1976.8,1976.6,0.001]
[1772859788906,0.49285992,1976.8,1976.6,0.001]
[1772859793594,1.75753009,1976.8,1976.7,0.001]
[1772859812629,0.002,1976.9,1976.7,0.001]
[1772859812797,1.86661698,1976.9,1976.7,0.001]
[1772859817026,1.26661698,1976.9,1976.7,0.001]